Cogmind - Beta 17 @@@ ROGUE MODE // 2026.06.22 @ 19:01:17 Player: Waste Result: Destroyed by ON-IYL(R) with Subdweller Machine Gun Performance ------------- Evolutions (0) 0 Regions Visited (3) 600 Robots Destroyed (18) 90 Value Destroyed (237) 237 Prototype IDs (0) 0 Alien Tech Used (0) 0 Bonus (0) 0 TOTAL SCORE: 927 Bonus ------- None Cogmind --------- Core Integrity 0/250 Matter 293/300 Energy 125/125 System Corruption 0% Temperature Cool (0) Movement Walking (120) Location -10/Subcaves Parts ------- > --- POWER (1) -------- Light Ion Engine > --- PROPULSION (2) --- Aluminum Leg Aluminum Leg > --- UTILITY (2) ------ Medium Storage Unit Light Armor Plating > --- WEAPON (2) ------- Small Laser > --- INVENTORY (10) --- Light Ion Engine Light Treads Light Treads Light Treads Compact Wheel Compact Wheel Experimental Sensor Array Light Assault Rifle Light Assault Rifle Peak State ------------ > --- POWER ------------ Light Ion Engine > --- PROPULSION ------- Aluminum Leg Aluminum Leg > --- UTILITY ---------- Medium Storage Unit Improved Light Armor Plating > --- WEAPON ----------- Small Laser Assault Rifle > --- INVENTORY -------- Light Ion Engine Light Treads Light Treads Light Treads Aluminum Leg Compact Wheel Compact Wheel Experimental Sensor Array Grenade Launcher Grenade Launcher [Rating: 10] Favorites ----------- Power Light Ion Engine Engine Light Ion Engine Propulsion Aluminum Leg Leg Aluminum Leg Utility Medium Storage Unit Storage Medium Storage Unit Protection Light Armor Plating Weapon Small Laser Energy Gun Small Laser Ballistic Gun Assault Rifle Launcher Grenade Launcher Build | -11 -10 -10 -10 ------- Run | Yrd Mat Min Sub Slots Evolved . | . . . . Power . | . . . . Propulsion . | . . . . Utility . | . . . . Weapon . | . . . . Parts Attached 12 | . 7 5 . Power 1 | . 1 . . Engine 1 | . 1 . . Core . | . . . . Reactor . | . . . . Propulsion 3 | . 2 1 . Treads . | . . . . Leg 3 | . 2 1 . Wheel . | . . . . Hover . | . . . . Flight . | . . . . Utility 3 | . 1 2 . Device . | . . . . Storage 1 | . 1 . . Processor . | . . . . Hackware . | . . . . Protection 2 | . . 2 . Artifact . | . . . . Weapon 5 | . 3 2 . Energy Gun 2 | . 1 1 . Energy Cannon . | . . . . Ballistic Gun 1 | . 1 . . Ballistic Cannon . | . . . . Launcher 2 | . 1 1 . Special Weapon . | . . . . Impact Weapon . | . . . . Slashing Weapon . | . . . . Piercing Weapon . | . . . . Special Melee Weapon . | . . . . Unidentified Prototypes . | . . . . Parts Lost 5 | . . 4 1 Power . | . . . . Propulsion 1 | . . 1 . Utility 1 | . . 1 . Weapon 3 | . . 2 1 Highest Loss Streak 2 | . . 2 1 To Critical Strikes . | . . . . Average Backups 9 | . 8 9 9 Power 1 | . 1 1 1 Propulsion 5 | . 5 5 5 Utility . | . . 1 1 Weapon 1 | . 1 1 2 Tool/Special . | . . . . Unused Backups 11 | . 6 1 4 Power 2 | . 2 . . Propulsion 3 | . 2 . 1 Utility 2 | . . 1 1 Weapon 4 | . 2 . 2 Tool/Special . | . . . . Average Slot Usage (%) 83 | . 85 81 100 Engine 14 | . 14 14 14 Leg 23 | . 28 20 28 Storage 14 | . 14 14 14 Protection 3 | . . 5 14 Energy Gun 15 | . 20 12 14 Ballistic Gun 10 | . 7 12 14 Launcher 1 | . . 2 . Peak Build Rating 10 | . 7 10 8 Average Rating 6 | . 6 6 7 On Entrance 6 | 6 6 7 8 Avg Prop Armor Cover (%) . | . . . . Naked Turns . | . . . . Heaviest Build 22 | 10 16 22 19 Greatest Support 20 | 20 20 20 20 Greatest Overweight (x) 1 | . . 1 . Average Overweight (x) . | . . . . Largest Inventory Capacity 10 | . 10 10 10 Average Capacity 9 | . 8 10 10 Most Carried 10 | . 10 10 9 Average Carried 9 | . 8 9 9 Final Capacity 10 | 8 10 10 10 Final Carried 10 | 6 10 9 9 Class Distribution -------------------- 100% | Mutant Dominant Class ---------------- Mutant | -10/Materials Mutant | -10/Mines Mutant | -10/Subcaves Resources | -11 -10 -10 -10 ----------- Run | Yrd Mat Min Sub Matter Collected 631 | 163 149 319 . Remotely . | . . . . Salvage Created 438 | . 340 98 . Parts 30 | . 23 7 . Haulers Intercepted 2 | . 2 . . Recyclers Shooed . | . . . . Parts Field Recycled . | . . . . Retrieved Matter . | . . . . Parts Self-Destructed . | . . . . Prevented . | . . . . Parts Restored . | . . . . Kills | -11 -10 -10 -10 ------- Run | Yrd Mat Min Sub Combat Hostiles Destroyed 32 | . 12 20 . Guns 16 | . 12 4 . AOE 16 | . . 16 . Classes Destroyed 5 | . 3 2 . Worker 1 | . . 1 . Hauler 2 | . 2 . . Swarmer 12 | . 9 3 . Grunt 3 | . 3 . . Assembled 17 | . . 17 . Best Kill Streak 12 | . 3 12 . Combat Bots Only 12 | . 3 12 . Max Kills in Single Turn 3 | . 2 3 . Gunslinging 1 | . 1 . . Exploded 3 | . . 3 . Melee . | . . . . Uniques/NPCs Destroyed . | . . . . Combat | -11 -10 -10 -10 -------- Run | Yrd Mat Min Sub Hostile Shots Fired 72 | . 35 29 8 Missed 13 | . 7 5 1 Hits 59 | . 28 24 7 Melee 5 | . . 5 . Projectile 54 | . 28 19 7 AOE 5 | . . 5 . Part Disruptions 1 | . . 1 . Damage Taken 1076 | . 283 647 146 Core 254 | . 83 121 50 Absorbed by Shields . | . . . . Core Remaining (%) 100 | 100 . . . Volleys Fired 72 | . 34 33 5 Largest 2 | . 2 2 2 Hottest 80 | . 80 60 60 Shots Fired 131 | . 64 58 9 Gun 109 | . 60 40 9 Cannon . | . . . . Launcher 22 | . 4 18 . Special . | . . . . Kinetic 40 | . 16 20 4 Thermal 69 | . 44 20 5 Explosive 22 | . 4 18 . Electromagnetic . | . . . . Robot Hit Streak 8 | . 6 8 4 Robot Miss Streak 5 | . 3 5 1 Penetration Max . | . . . . Secondary Targets 2 | . 2 . . Max Gunslinging Chain 1 | . 1 . . Shots Hit Robots 74 | . 36 31 7 Core Hits 58 | . 19 37 2 Critical Kills . | . . . . Critical Parts Destroyed 1 | . 1 . . Critical Strikes 1 | . 1 . . Destroy 1 | . 1 . . Melee Attacks . | . . . . Impact . | . . . . Slashing . | . . . . Piercing . | . . . . Sneak Attacks . | . . . . Combat Hostiles . | . . . . Follow-up Attacks . | . . . . Damage Inflicted 1821 | . 467 1276 78 Guns 757 | . 426 253 78 Cannons . | . . . . Explosions 1023 | . . 1023 . Melee . | . . . . Ramming 41 | . 41 . . Kinetic 324 | . 126 154 44 Thermal 488 | . 300 154 34 Explosive 968 | . . 968 . Electromagnetic . | . . . . Impact . | . . . . Slashing . | . . . . Piercing . | . . . . Highest Corruption . | . . . . Average Corruption . | . . . . Corruption Purged . | . . . . Corruption Blocked . | . . . . Overload Shots . | . . . . Overflow Damage 24 | . . 24 . Projectiles . | . . . . Explosions 24 | . . 24 . Melee . | . . . . Knockbacks . | . . . . Impact . | . . . . Kinetic . | . . . . Secondary . | . . . . Self-Inflicted Damage 191 | . 16 175 . Shots 9 | . 1 8 . Rammed . | . . . . Targets Rammed 8 | . 7 1 . Kicked 8 | . 7 1 . Crushed . | . . . . Highest Temperature 108 | . 108 100 . Average Temperature 32 | . 39 26 . Received Heat Transfer 226 | . 66 160 . Siege Activations . | . . . . Martial Activations . | . . . . Shielding Activations . | . . . . Robots Disrupted . | . . . . Combat Hostiles . | . . . . Robots Corrupted . | . . . . Combat Hostiles . | . . . . Parts Fried . | . . . . Impact Corruptions . | . . . . Robots Melted . | . . . . Combat Hostiles . | . . . . Parts Melted . | . . . . Heat Transferred 1025 | . 675 275 75 Parts Sabotaged . | . . . . Parts Stolen . | . . . . Parts Stripped . | . . . . Power Chain Reactions . | . . . . Alert | -11 -10 -10 -10 ------- Run | Yrd Mat Min Sub Maximum Alert Level . | . . . . Low Security (%) 100 | . 100 100 . Level 1 . | . . . . Level 2 . | . . . . Level 3 . | . . . . Level 4 . | . . . . Level 5 . | . . . . High Security . | . . . . Max Security . | . . . . Peak Influence 95 | . 95 86 . Initial 1 | . . 1 . Average 24 | . 43 8 . Influence Increases 514 | . 360 154 . Destroy 0b10 Robot/C 300 | . 240 60 . Destroy 0b10 Robot/NC 15 | . 10 5 . Destroy Leader 64 | . 54 10 . Successful Hack 13 | . 13 . . Disable Machine 15 | . . 15 . Destroy Structure 77 | . 13 64 . Partial Spotted 15 | . 15 . . Lose Combat Pursuer 15 | . 15 . . Influence Decreases 514 | . 354 160 . Entered New Map 5 | . . 5 . Time Decay 469 | . 354 115 . Lost Part 40 | . . 40 . Squads Dispatched 2 | . 2 . . Investigation 1 | . 1 . . Extermination . | . . . . Reinforcement 1 | . 1 . . Assault . | . . . . Garrison . | . . . . Intercept . | . . . . Searches Triggered . | . . . . Construction Impeded . | . . . . Haulers Reinforced . | . . . . Active Scanning Responses . | . . . . Cargo Convoy Interrupts . | . . . . Stealth | -11 -10 -10 -10 --------- Run | Yrd Mat Min Sub Distress Signals 2 | . 2 . . Communications Jammed . | . . . . Distress Signals . | . . . . Times Spotted 45 | . 22 22 1 Peak Tracking Total 5 | . 4 5 1 Tactical Retreats 2 | . 1 1 . Traps | -11 -10 -10 -10 ------- Run | Yrd Mat Min Sub Traps Triggered 1 | . 1 . . Indirectly . | . . . . Trap Hack Attempts . | . . . . Triggered . | . . . . Disarmed . | . . . . Reprogrammed . | . . . . Reused . | . . . . Traps Extracted . | . . . . Installed . | . . . . Triggered . | . . . . Machines | -11 -10 -10 -10 ---------- Run | Yrd Mat Min Sub Machines Disabled 1 | . . 1 . Max in Single Turn 1 | . . 1 . Machines Repaired . | . . . . Machines Dismantled . | . . . . Machines Sabotaged . | . . . . Overloaded Fab Kills . | . . . . Hacking | -11 -10 -10 -10 --------- Run | Yrd Mat Min Sub Machines Accessed 3 | . 3 . . Terminals 3 | . 3 . . Fabricators . | . . . . Repair Stations . | . . . . Recycling Units . | . . . . Scanalyzers . | . . . . Garrison Access . | . . . . Total Hacks 13 | . 13 . . Successful 4 | . 4 . . Failed 9 | . 9 . . Catastrophic . | . . . . Database Lockouts . | . . . . Manual 13 | . 13 . . Terminals 13 | . 13 . . Fabricators . | . . . . Repair Stations . | . . . . Recycling Units . | . . . . Scanalyzers . | . . . . Garrison Access . | . . . . Terminal Hacks 1 | . 1 . . Terminal Index 1 | . 1 . . Fabricator Hacks . | . . . . Repair Station Hacks . | . . . . Recycling Unit Hacks . | . . . . Scanalyzer . | . . . . Garrison Access Hacks . | . . . . Unauthorized Hacks 3 | . 3 . . Terminals 3 | . 3 . . Botnet 2 | . 2 . . Skim 1 | . 1 . . Fabricators . | . . . . Repair Stations . | . . . . Recycling Units . | . . . . Scanalyzers . | . . . . Garrison Access . | . . . . Data Cores Recovered . | . . . . Used . | . . . . Hacking Detections 3 | . 3 . . Full Trace Events . | . . . . Feedback Events . | . . . . Feedback Blocked . | . . . . Robot Schematics Acquired . | . . . . Robots Built . | . . . . Authchips . | . . . . Time . | . . . . Total Robot Build Rating . | . . . . Part Schematics Acquired . | . . . . Parts Built . | . . . . Authchips . | . . . . Time . | . . . . Total Part Build Rating . | . . . . Part Studies Acquired . | . . . . Parts Repaired . | . . . . Time . | . . . . Parts Recycled . | . . . . Recycled Matter . | . . . . Retrieved Matter . | . . . . Retrieved Components . | . . . . Parts Scanalyzed . | . . . . Part Schematics Acquired . | . . . . Parts Damaged . | . . . . Bothacking | -11 -10 -10 -10 ------------ Run | Yrd Mat Min Sub Used RIF Installer . | . . . . Robots Hacked . | . . . . Non-combat . | . . . . Combat . | . . . . Robot Hacks Applied . | . . . . Relay Couplers Released . | . . . . Fabnet Peak Effective % . | . . . . Robots Rewired . | . . . . Allies Hacked . | . . . . Hacks Repelled . | . . . . Allies | -11 -10 -10 -10 -------- Run | Yrd Mat Min Sub Total Allies 2 | . . 2 . Largest Group 2 | . . 2 . Highest-Rated Group 49 | . . 49 . Highest-Rated Ally 31 | . . 31 . Total Orders . | . . . . Ally Attacks 1 | . . 1 . Total Damage 22 | . . 22 . Kills . | . . . . Allies Corrupted . | . . . . Allies Melted . | . . . . Intel | -11 -10 -10 -10 ------- Run | Yrd Mat Min Sub Active Infowar (turns) . | . . . . Robot Analysis Total . | . . . . Derelict Logs Recovered 3 | . . 3 . Drone Launches . | . . . . Drone Recoveries . | . . . . Exploration | -11 -10 -10 -10 ------------- Run | Yrd Mat Min Sub Turns Passed 1955 | . 853 1044 58 Spaces Moved 1226 | 1 592 596 37 Core . | . . . . Treads . | . . . . Legs 1226 | 1 592 596 37 Wheels . | . . . . Hover . | . . . . Flight . | . . . . Fastest Speed 120 | 120 120 120 120 Average Speed 137 | 120 120 156 120 Slowest Speed 190 | 120 120 190 120 Overloaded Moves . | . . . . Propulsion Burnouts . | . . . . Robots Hopped . | . . . . Potential Cave-ins 2 | . 2 . . Cave-ins Triggered . | . . . . Exploration Rate (%) 45 | 2 78 98 4 Regions Visited 3 Branch Regions 2 Pre-discovered Areas 2 | . . 2 . Known Exits Taken 1 | . . 1 . Unknown Exits Taken 2 | 1 1 . . Scrap Searched 2 | . . 2 . Spaces Dug 4 | . 4 . . Terrain Destroyed 137 | . 28 109 . Melee . | . . . . Projectile . | . . . . AOE 137 | . 28 109 . Terrain Rammed . | . . . . Walls Destroyed . | . . . . Machines Disabled . | . . . . Actions | -11 -10 -10 -10 --------- Run | Yrd Mat Min Sub Total 1356 | . 668 646 42 Wait 30 | . 24 6 . Move 1223 | . 591 595 37 Hop . | . . . . Pick Up 5 | . 2 3 . Fast Attach 3 | . 1 2 . Attach 3 | . . 3 . Detach 1 | . 1 . . Swap 8 | . 6 2 . Drop 3 | . 2 1 . Fire 72 | . 34 33 5 Melee . | . . . . Ram . | . . . . Kick 8 | . 7 1 . Crush . | . . . . Escape Stasis . | . . . . Rewire . | . . . . Trap . | . . . . Miscellaneous . | . . . . Route ------- -11/Scrapyard -10/Materials (discovered 4 exits: [*Mat x3] / [*Min]) -10/Mines (discovered 3 exits: [*Mat x2] / *Sub) -10/Subcaves (discovered 1 exit: [*Mat]) History --------- Turn | Location | Event 1 | -11/Scrapyard | Discovered new exit (range 0) 1 | -11/Scrapyard | Entered Materials 46 | -10/Materials | Discovered new exit (range 14) 214 | -10/Materials | Discovered new exit (range 15) 313 | -10/Materials | Build established: Mutant 465 | -10/Materials | Discovered new exit (range 13) 838 | -10/Materials | Discovered new exit (range 14) 854 | -10/Materials | Entered Mines 865 | -10/Mines | Discovered new exit (range 7) 866 | -10/Mines | Learned location of Storage (-7) 956 | -10/Mines | Found a damaged Exp. Sensor Array with a note attached 959 | -10/Mines | Found Prototype Device 967 | -10/Mines | Assembled infested the area 972 | -10/Mines | Assisted by a Guerilla fighting off Assembled 1005 | -10/Mines | Discovered new exit (range 12) 1017 | -10/Mines | Lost 3 allies 1129 | -10/Mines | Core integrity fell below 50% 1164 | -10/Mines | Destroyed 12 combat bots 1192 | -10/Mines | Identified exit to Subcaves 1242 | -10/Mines | Core integrity fell below 20% 1620 | -10/Mines | Found a hidden stash of uninstalled traps 1898 | -10/Mines | Entered Subcaves 1899 | -10/Subcaves | Approached by a straggling Scientist 1910 | -10/Subcaves | Discovered new exit (range 12) 1943 | -10/Subcaves | Disturbed a concealed Subdweller 1956 | -10/Subcaves | Destroyed by ON-IYL(R) with Subdweller Machine Gun Last Messages --------------- 01814_ K-01 Serf collects debris. 01820_ as-73906 destroyed. 01821_ K-01 Serf collects debris. 01823_ Acquired 14 matter. 01825_ K-01 Serf collects debris. 01827_ Kicked K-01 Serf. 01838_ Acquired 10 matter. 01858_ K-01 Serf collects debris. LOCATION=SUBCAVES AMBIENT_HEAT=-10 GOAL=ESCAPE 01899_ UA-WNM(c): "Thank the algorithms! I was beginning to lose hope I'd never make it past all the Subs lurking out here." 01902_ UA-WNM(c): "Hey, let me tag along and I can get us both out of this nasty situation. At least I think I can... The group I got separated from was talking about a shortcut back to the UFD." 01910_ EXIT=FOUND 01943_ ON-IYL(R) angrily emerges from the Twisted Machinery. UA-WNM(c): "I think it's somewhere south of here" 01952_ Assault Rifle destroyed. Map ----- +----------------------------------------------------+ | ?????????????????????????????????????????????????? | | ?????????????????????????????????????????????????? | | ?????????????????????????????????????????????????? | | ?????????????????????????????????????????????????? | | ?????????????????????????????????????????????????? | | ?????????????????????????????????????????????????? | | ?????????????????????????????????????????????????? | | ?????????????????????????????????????????????????? | | ?????????????????????????????????????????????????? | | ?????????????????????????????????????????????????? | | ?????????????????????????????????????????????????? | | ?????????????????????????????????????????????????? | | ?????????????????????????????????????????????????? | | ?????????????????????????????????????????????????? | | ?????????????????????????????????????????????????? | | ?????????????????????????????????????????????????? | | ?????????????????????????????????????????????????? | | ?????????????????????????????????????????????????? | | ?????????????????????????????????????????????????? | | ?????????????????????????????????????????????????? | | ?????????????????????????????????????????????????? | | ?????????????????????????????????????????????????? | | ?????????????????????????????????????????????????? | | ????????????????????????######???????????????????? | | ???????????????????????##